Workbook

Sheet Лист1
A1: Школа | C1: ГБОУ Михайловская КШИ | F1: Утвердил: | G1: должность | H1: Директор
A2: Типовое примерное меню приготавливаемых блюд | G2: фамилия | H2: Шишкина Г.Ф.
A3: Возрастная категория | E3: 7- 11 лет | G3: дата | H3: 2025-09-01
A5: Неделя | B5: День недели | C5: Прием пищи | D5: Раздел меню | E5: Блюда | F5: Вес блюда, г | G5: Белки | H5: Жиры | I5: Углеводы | J5: Калорийность | K5: № рецептуры | L5: Цена
A6: 1 | B6: 1 | C6: Завтрак | D6: гор.блюдо | E6: Каша манная молочная жидкая, яйца вареные | F6: 225 | G6: 5.4 | H6: 7.2 | I6: 26.8 | J6: 194 | K6: 205
D7: гор.напиток | E7: Какао с молоком | F7: 200 | G7: 3.3 | H7: 3.1 | I7: 13.63 | J7: 95 | K7: 306
D8: хлеб | E8: Бутерброд с маслом и сыром, хлеб пшеничный с витаминами и железом | F8: 75 | G8: 7.1 | H8: 7.4 | I8: 29 | J8: 220 | K8: 2
D9: фрукты
C10: завтрак 2 | D10: напиток | E10: Сок фруктовый | F10: 200 | G10: 1 | H10: 0.2 | I10: 20.2 | J10: 86 | K10: пром
D12: итого | F12: =SUM(F6:F11) -> 700 | G12: =SUM(G6:G11) -> 16.8 | H12: =SUM(H6:H11) -> 17.9 | I12: =SUM(I6:I11) -> 89.63 | J12: =SUM(J6:J11) -> 595
A13: =A6 -> 1 | B13: =B6 -> 1 | C13: Обед | D13: закуска | E13: Салат из свежих огурцов | F13: 60 | G13: 0.5 | H13: 2.7 | I13: 1.8 | J13: 35 | K13: 14
D14: 1 блюдо | E14: Суп картофельный с бобовыми | F14: 250 | G14: 3.9 | H14: 4 | I14: 10.7 | J14: 130 | K14: 65
D15: 2 блюдо | E15: Гуляш из отварной говядины | F15: 100 | G15: 13.4 | H15: 13.4 | I15: 3.1 | J15: 188 | K15: 97
D16: гарнир | E16: Макаронные изделия отварные | F16: 185 | G16: 6.5 | H16: 4.4 | I16: 40 | J16: 233 | K16: 227
D17: напиток | E17: Компот из свежих плодов | F17: 200 | G17: 0.2 | H17: 0.1 | I17: 17.2 | J17: 70 | K17: 311
D18: хлеб бел. | E18: Хлеб пшеничный с витаминами и железом | F18: 40 | G18: 3.6 | H18: 0.4 | I18: 19.3 | J18: 98.4 | K18: пром
D19: хлеб черн. | E19: Хлеб ржано - пшеничный с витаминами и железом | F19: 50 | G19: 3.3 | H19: 0.6 | I19: 16.7 | J19: 96.5 | K19: пром
D22: итого | F22: =SUM(F13:F21) -> 885 | G22: =SUM(G13:G21) -> 31.4 | H22: =SUM(H13:H21) -> 25.6 | I22: =SUM(I13:I21) -> 108.8 | J22: =SUM(J13:J21) -> 850.9
B23: =B6 -> 1 | C23: Итого за день: | F23: =F12+F22 -> 1585 | G23: =G12+G22 -> 48.2 | H23: 43.5 | I23: 198.43 | J23: 1445.9
A24: 1 | B24: 2 | C24: Завтрак | D24: гор.блюдо | E24: Суп молочный с крупой пшенной , сосиски отварные | F24: 300 | G24: 10.3 | H24: 15.5 | I24: 20.6 | J24: 263 | K24: 76
D25: гор.напиток | E25: Кофейный напиток на молоке сгущенном | F25: 200 | G25: 1.4 | H25: 1.4 | I25: 12.5 | J25: 66 | K25: 305
D26: хлеб | E26: Бутерброд с маслом и сыром, хлеб пшеничный с витаминами и железом | F26: 65 | G26: 7.1 | H26: 7.4 | I26: 29 | J26: 220 | K26: 2
D27: фрукты
D28: булочное
C29: завтрак 2 | D29: напиток | E29: сок фруктовый | F29: 200 | G29: 1 | H29: 0.2 | I29: 20.2 | J29: 86 | K29: пром.
D30: итого | F30: =SUM(F24:F29) -> 765 | G30: =SUM(G24:G29) -> 19.8 | H30: =SUM(H24:H29) -> 24.5 | I30: =SUM(I24:I29) -> 82.3 | J30: =SUM(J24:J29) -> 635
A31: =A24 -> 1 | B31: =B24 -> 2 | C31: Обед | D31: закуска | E31: Салат из свежих помидоров | F31: 60 | G31: 0.6 | H31: 3 | I31: 2.9 | J31: 43 | K31: 13
D32: 1 блюдо | E32: Борщ с капустой и картофелем | F32: 250 | G32: 2 | H32: 5.4 | I32: 12.8 | J32: 111 | K32: 58
D33: 2 блюдо | E33: Плов из отварной говядины | F33: 200 | G33: 14.8 | H33: 16 | I33: 40.1 | J33: 372 | K33: 120
D34: гарнир
D35: напиток | E35: Компот из свежих плодов | F35: 200 | G35: 0.2 | H35: 0.1 | I35: 17.2 | J35: 70 | K35: 311
D36: хлеб бел. | E36: Хлеб пшеничный с витаминами и железом | F36: 50 | G36: 4 | H36: 0.5 | I36: 24.2 | J36: 123 | K36: пром.
D37: хлеб черн. | E37: Хлеб ржано - пшеничный с витаминами и железом | F37: 50 | G37: 3.3 | H37: 0.6 | I37: 16.7 | J37: 96.5 | K37: пром.
D40: итого | F40: =SUM(F31:F39) -> 810 | G40: =SUM(G31:G39) -> 24.9 | H40: =SUM(H31:H39) -> 25.6 | I40: =SUM(I31:I39) -> 113.9 | J40: =SUM(J31:J39) -> 815.5
A41: =A24 -> 1 | B41: =B24 -> 2 | C41: Итого за день: | F41: =F40+F30 -> 1575 | G41: =G40+G30 -> 44.7 | H41: 50.1 | I41: 196.2 | J41: 1450.5
A42: 1 | B42: 3 | C42: Завтрак | D42: гор.блюдо | E42: Каша пшеничная молочная , яйца вареные | F42: 225 | G42: 10.5 | H42: 11.9 | I42: 27.9 | J42: 255 | K42: 209
D43: гор.напиток | E43: Какао с молоком | F43: 200 | G43: 3.3 | H43: 3.1 | I43: 13.63 | J43: 95 | K43: 306
D44: хлеб | E44: Бутерброд с маслом и сыром, хлеб пшеничный с витаминами и железом | F44: 75 | G44: 7.1 | H44: 7.4 | I44: 29 | J44: 220 | K44: 2
D45: фрукты
C46: завтрак 2 | D46: напиток | E46: Сок фруктовый | F46: 200 | G46: 1 | H46: 0.2 | I46: 20.2 | J46: 86 | K46: пром
D48: итого | F48: =SUM(F42:F47) -> 700 | G48: =SUM(G42:G47) -> 21.9 | H48: =SUM(H42:H47) -> 22.6 | I48: =SUM(I42:I47) -> 90.73 | J48: =SUM(J42:J47) -> 656
A49: =A42 -> 1 | B49: =B42 -> 3 | C49: Обед | D49: закуска | E49: Салат из свежих помидоров и огурцов | F49: 60 | G49: 0.5 | H49: 2.8 | I49: 2.2 | J49: 38 | K49: 15
D50: 1 блюдо | E50: Суп картофельный с крупой | F50: 250 | G50: 2.6 | H50: 2.1 | I50: 19.3 | J50: 113 | K50: 63
D51: 2 блюдо | E51: Овощи тушеные с мясом | F51: 175 | G51: 15.3 | H51: 18.4 | I51: 15.3 | J51: 292 | K51: 125
D52: гарнир
D53: напиток | E53: Компот из свежих плодов | F53: 200 | G53: 0.2 | H53: 0.1 | I53: 17.2 | J53: 70 | K53: 311
D54: хлеб бел. | E54: Хлеб пшеничный с витаминами и железом | F54: 40 | G54: 3.6 | H54: 0.4 | I54: 19.3 | J54: 98.4 | K54: пром.
D55: хлеб черн. | E55: Хлеб ржано - пшеничный с витаминами и железом | F55: 50 | G55: 3.3 | H55: 0.6 | I55: 16.7 | J55: 96.5 | K55: пром.
D58: итого | F58: =SUM(F49:F57) -> 775 | G58: =SUM(G49:G57) -> 25.5 | H58: =SUM(H49:H57) -> 24.4 | I58: =SUM(I49:I57) -> 90 | J58: =SUM(J49:J57) -> 707.9
A59: =A42 -> 1 | B59: =B42 -> 3 | C59: Итого за день: | F59: =F58+F48 -> 1475 | G59: =G58+G48 -> 47.4 | H59: 47 | I59: 180.73 | J59: 1363.9
A60: 1 | B60: 4 | C60: Завтрак | D60: гор.блюдо | E60: Суп молочный с овощами, сосиски отварные | F60: 300 | G60: 9.9 | H60: 15.8 | I60: 13.7 | J60: 239 | K60: 77
D61: гор.напиток | E61: Кофейный напиток на молоке сгущенном | F61: 200 | G61: 1.4 | H61: 1.4 | I61: 12.5 | J61: 66 | K61: 305
D62: хлеб | E62: Бутерброд с маслом и сыром, хлеб пшеничный с витаминами и железом | F62: 65 | G62: 7.1 | H62: 7.4 | I62: 29 | J62: 220 | K62: 2
D63: фрукты
D64: булочное
C65: завтрак 2 | D65: напиток | E65: Сок фруктовый | F65: 200 | G65: 1 | H65: 0.2 | I65: 20.2 | J65: 86 | K65: пром
D66: итого | F66: =SUM(F60:F65) -> 765 | G66: =SUM(G60:G65) -> 19.4 | H66: =SUM(H60:H65) -> 24.8 | I66: =SUM(I60:I65) -> 75.4 | J66: =SUM(J60:J65) -> 611
A67: =A60 -> 1 | B67: =B60 -> 4 | C67: Обед | D67: закуска | E67: Сельдь с луком | F67: 60 | G67: 5.5 | H67: 12 | I67: 1.6 | J67: 138 | K67: 52
D68: 1 блюдо | E68: Щи из свежей капусты с картофелем | F68: 250 | G68: 2 | H68: 5.4 | I68: 8.8 | J68: 96 | K68: 55
D69: 2 блюдо | E69: Печень по - строгановски | F69: 90 | G69: 12.4 | H69: 8.9 | I69: 2.3 | J69: 140 | K69: 130
D70: гарнир | E70: Картофельное пюре | F70: 200 | G70: 4.1 | H70: 6.3 | I70: 26.7 | J70: 187 | K70: 146
D71: напиток | E71: Компот из свежих плодов | F71: 200 | G71: 0.2 | H71: 0.1 | I71: 17.2 | J71: 70 | K71: 311
D72: хлеб бел. | E72: Хлеб пшеничный с витаминами и железом | F72: 50 | G72: 4 | H72: 0.5 | I72: 24.2 | J72: 123 | K72: пром.
D73: хлеб черн. | E73: Хлеб ржано - пшеничный с витаминами и железом | F73: 50 | G73: 3.3 | H73: 0.6 | I73: 16.7 | J73: 96.5 | K73: пром.
D76: итого | F76: =SUM(F67:F75) -> 900 | G76: =SUM(G67:G75) -> 31.5 | H76: =SUM(H67:H75) -> 33.8 | I76: =SUM(I67:I75) -> 97.5 | J76: =SUM(J67:J75) -> 850.5
A77: =A60 -> 1 | B77: =B60 -> 4 | C77: Итого за день: | F77: =F76+F66 -> 1665 | G77: =G76+G66 -> 50.9 | H77: 58.6 | I77: 172.9 | J77: 1461.5
A78: 1 | B78: 5 | C78: Завтрак | D78: гор.блюдо | E78: Каша овсяная молочная , яйца вареные | F78: 225 | G78: 10.7 | H78: 12.8 | I78: 23.9 | J78: 278 | K78: 206
D79: гор.напиток | E79: Какао с молоком | F79: 200 | G79: 3.3 | H79: 3.1 | I79: 13.63 | J79: 95 | K79: 306
D80: хлеб | E80: Бутерброд с маслом и сыром, хлеб пшеничный с витаминами и железом | F80: 75 | G80: 7.1 | H80: 7.4 | I80: 29 | J80: 220 | K80: 2
D81: фрукты
D82: закуска
C83: завтрак 2 | D83: напиток | E83: Сок фруктовый | F83: 200 | G83: 1 | H83: 0.2 | I83: 20.2 | J83: 86 | K83: пром
D84: итого | F84: =SUM(F78:F83) -> 700 | G84: =SUM(G78:G83) -> 22.1 | H84: =SUM(H78:H83) -> 23.5 | I84: =SUM(I78:I83) -> 86.73 | J84: =SUM(J78:J83) -> 679
A85: =A78 -> 1 | B85: =B78 -> 5 | C85: Обед | D85: закуска | E85: Салат из белокочанной капусты, моркови и кукурузы | F85: 60 | G85: 1.3 | H85: 3.8 | I85: 4.8 | J85: 61 | K85: 10
D86: 1 блюдо | E86: Суп картофельный с лапшой домашней | F86: 250 | G86: 2.8 | H86: 2.3 | I86: 17.3 | J86: 109 | K86: 62
D87: 2 блюдо | E87: Плов из курицы | F87: 200 | G87: 18.2 | H87: 23.2 | I87: 32.2 | J87: 417 | K87: 138
D88: гарнир
D89: напиток | E89: Компот из свежих плодов | F89: 200 | G89: 0.2 | H89: 0.1 | I89: 17.2 | J89: 70 | K89: 311
D90: хлеб бел. | E90: Хлеб пшеничный с витаминами и железом | F90: 40 | G90: 3.6 | H90: 0.4 | I90: 19.3 | J90: 98.4 | K90: пром.
D91: хлеб черн. | E91: Хлеб ржано - пшеничный с витаминами и железом | F91: 50 | G91: 3.3 | H91: 0.6 | I91: 16.7 | J91: 96.5 | K91: пром.
D92: булочное
D94: итого | F94: =SUM(F85:F93) -> 800 | G94: =SUM(G85:G93) -> 29.4 | H94: =SUM(H85:H93) -> 30.4 | I94: =SUM(I85:I93) -> 107.5 | J94: =SUM(J85:J93) -> 851.9
A95: =A78 -> 1 | B95: =B78 -> 5 | C95: Итого за день: | F95: =F94+F84 -> 1500 | G95: =G94+G84 -> 51.5 | H95: 53.9 | I95: 194.23 | J95: 1530.9
A96: 1 | B96: 6 | C96: Завтрак | D96: гор.блюдо | E96: Суп молочный с крупой пшенной , сосиски отварные | F96: 300 | G96: 10.3 | H96: 15.5 | I96: 20.6 | J96: 263 | K96: 76
D97: гор.напиток | E97: Кофейный напиток на молоке сгущенном | F97: 200 | G97: 1.4 | H97: 1.4 | I97: 12.5 | J97: 66 | K97: 305
D98: хлеб | E98: Бутерброд с маслом , хлеб пшеничный с витаминами и железом | F98: 60 | G98: 4 | H98: 8.8 | I98: 24.2 | J98: 197.8 | K98: 1
D99: фрукты
C100: завтрак 2 | D100: напиток | E100: Сок фруктовый | F100: 200 | G100: 1 | H100: 0.2 | I100: 20.2 | J100: 86 | K100: пром
D102: итого | F102: =SUM(F96:F101) -> 760 | G102: =SUM(G96:G101) -> 16.7 | H102: =SUM(H96:H101) -> 25.9 | I102: =SUM(I96:I101) -> 77.5 | J102: =SUM(J96:J101) -> 612.8
A103: =A96 -> 1 | B103: =B96 -> 6 | C103: Обед | D103: закуска | E103: Салат из свежих помидоров | F103: 60 | G103: 0.6 | H103: 3 | I103: 2.9 | J103: 43 | K103: 13
D104: 1 блюдо | E104: Суп картофельный с бобовыми | F104: 250 | G104: 3.9 | H104: 4 | I104: 10.7 | J104: 130 | K104: 65
D105: 2 блюдо | E105: Жаркое по - домашнему | F105: 180 | G105: 18.2 | H105: 18.2 | I105: 17.6 | J105: 312 | K105: 98
D106: гарнир
D107: напиток | E107: Компот из свежих плодов | F107: 200 | G107: 0.2 | H107: 0.1 | I107: 17.2 | J107: 70 | K107: 311
D108: хлеб бел. | E108: Хлеб пшеничный с витаминами и железом | F108: 50 | G108: 4 | H108: 0.5 | I108: 24.2 | J108: 123 | K108: пром.
D109: хлеб черн. | E109: Хлеб ржано - пшеничный с витаминами и железом | F109: 50 | G109: 3.3 | H109: 0.6 | I109: 16.7 | J109: 96.5 | K109: пром.
D112: итого | F112: =SUM(F103:F111) -> 790 | G112: =SUM(G103:G111) -> 30.2 | H112: =SUM(H103:H111) -> 26.4 | I112: =SUM(I103:I111) -> 89.3 | J112: =SUM(J103:J111) -> 774.5
A113: =A96 -> 1 | B113: =B96 -> 6 | C113: Итого за день: | F113: =F112+F102 -> 1550 | G113: =G112+G102 -> 46.9 | H113: 52.3 | I113: 166.8 | J113: =J112+J102 -> 1387.3
A114: 1 | B114: 7 | C114: Завтрак | D114: гор.блюдо | E114: Каша манная молочная жидкая, яйцо вареное | F114: 225 | G114: 10.3 | H114: 11.8 | I114: 27.5 | J114: 259 | K114: 205
D115: гор.напиток | E115: Какао с молоком | F115: 200 | G115: 3.3 | H115: 3.1 | I115: 13.63 | J115: 95 | K115: 306
D116: хлеб | E116: Бутерброд с маслом и сыром, хлеб пшеничный с витаминами и железом | F116: 75 | G116: 7.1 | H116: 7.4 | I116: 29 | J116: 220 | K116: 2
D117: фрукты
D118: булочное
C119: завтрак 2 | D119: напиток | E119: Сок фруктовый | F119: 200 | G119: 1 | H119: 0.2 | I119: 20.2 | J119: 86 | K119: пром
D120: итого | F120: =SUM(F114:F119) -> 700 | G120: =SUM(G114:G119) -> 21.7 | H120: =SUM(H114:H119) -> 22.5 | I120: =SUM(I114:I119) -> 90.33 | J120: =SUM(J114:J119) -> 660
A121: =A114 -> 1 | B121: =B114 -> 7 | C121: Обед | D121: закуска | E121: Салат из сырых овощей | F121: 60 | G121: 0.5 | H121: 2.7 | I121: 2.4 | J121: 37 | K121: 22
D122: 1 блюдо | E122: Свекольник | F122: 250 | G122: 2.5 | H122: 4.5 | I122: 15 | J122: 115 | K122: 70
D123: 2 блюдо | E123: Плов из отварной говядины | F123: 200 | G123: 14.8 | H123: 16 | I123: 40.1 | J123: 372 | K123: 120
D124: гарнир
D125: напиток | E125: Компот из свежих плодов | F125: 200 | G125: 0.2 | H125: 0.1 | I125: 17.2 | J125: 70 | K125: 311
D126: хлеб бел. | E126: Хлеб пшеничный с витаминами и железом | F126: 40 | G126: 3.6 | H126: 0.4 | I126: 19.3 | J126: 98.4 | K126: пром.
D127: хлеб черн. | E127: Хлеб ржано - пшеничный с витаминами и железом | F127: 50 | G127: 3.3 | H127: 0.6 | I127: 16.7 | J127: 96.5 | K127: пром.
D130: итого | F130: =SUM(F121:F129) -> 800 | G130: =SUM(G121:G129) -> 24.9 | H130: =SUM(H121:H129) -> 24.3 | I130: =SUM(I121:I129) -> 110.7 | J130: =SUM(J121:J129) -> 788.9
A131: =A114 -> 1 | B131: =B114 -> 7 | C131: Итого за день: | F131: =F130+F120 -> 1500 | G131: =G130+G120 -> 46.6 | H131: 46.8 | I131: 201.03 | J131: 1448.9
A132: 2 | B132: 1 | C132: Завтрак | D132: гор.блюдо | E132: Суп молочный с крупой пшенной , сосиски отварные | F132: 300 | G132: 10.3 | H132: 15.5 | I132: 20.6 | J132: 263 | K132: 76
D133: гор.напиток | E133: Кофейный напиток на молоке сгущенном | F133: 200 | G133: 1.4 | H133: 1.4 | I133: 12.5 | J133: 66 | K133: 305
D134: хлеб | E134: Бутерброд с маслом и сыром, хлеб пшеничный с витаминами и железом | F134: 65 | G134: 7.1 | H134: 7.4 | I134: 29 | J134: 220 | K134: 2
D135: фрукты
C136: завтрак 2 | D136: напиток | E136: Сок фруктовый | F136: 200 | G136: 1 | H136: 0.2 | I136: 20.2 | J136: 86 | K136: пром
D138: итого | F138: =SUM(F132:F137) -> 765 | G138: =SUM(G132:G137) -> 19.8 | H138: =SUM(H132:H137) -> 24.5 | I138: =SUM(I132:I137) -> 82.3 | J138: =SUM(J132:J137) -> 635
A139: =A132 -> 2 | B139: =B132 -> 1 | C139: Обед | D139: закуска | E139: Салат из свежих помидоров | F139: 60 | G139: 0.6 | H139: 3 | I139: 2.9 | J139: 43 | K139: 13
D140: 1 блюдо | E140: Суп картофельный с макаронными изделиями | F140: 250 | G140: 5.5 | H140: 4.5 | I140: 20.2 | J140: 149 | K140: 61
D141: 2 блюдо | E141: Куры отварные | F141: 90 | G141: 22.5 | H141: 18.9 | I141: 0.3 | J141: 295 | K141: 132
D142: гарнир | E142: Каша гречнева вязкая на молоке | F142: 185 | G142: 8 | H142: 8.2 | I142: 32.7 | J142: 247 | K142: 193
D143: напиток | E143: Компот из свежих плодов | F143: 200 | G143: 0.2 | H143: 0.1 | I143: 17.2 | J143: 70 | K143: 311
D144: хлеб бел. | E144: Хлеб пшеничный с витаминами и железом | F144: 50 | G144: 4 | H144: 0.5 | I144: 24.2 | J144: 123 | K144: пром.
D145: хлеб черн. | E145: Хлеб ржано - пшеничный с витаминами и железом | F145: 50 | G145: 3.3 | H145: 0.6 | I145: 16.7 | J145: 96.5 | K145: пром.
D148: итого | F148: =SUM(F139:F147) -> 885 | G148: =SUM(G139:G147) -> 44.1 | H148: =SUM(H139:H147) -> 35.8 | I148: =SUM(I139:I147) -> 114.2 | J148: =SUM(J139:J147) -> 1023.5
A149: =A132 -> 2 | B149: =B132 -> 1 | C149: Итого за день: | F149: =F148+F138 -> 1650 | G149: =G148+G138 -> 63.9 | H149: 60.3 | I149: 196.5 | J149: 1658.5
A150: 2 | B150: 2 | C150: Завтрак | D150: гор.блюдо | E150: Каша пшеничная молочная , яйца вареные | F150: 225 | G150: 10.5 | H150: 11.9 | I150: 27.3 | J150: 255 | K150: 209
D151: гор.напиток | E151: Какао с молоком | F151: 200 | G151: 3.3 | H151: 3.1 | I151: 13.63 | J151: 95 | K151: 306
D152: хлеб | E152: Бутерброд с маслом и сыром, хлеб пшеничный с витаминами и железом | F152: 75 | G152: 7.1 | H152: 7.4 | I152: 29 | J152: 220 | K152: 2
D153: фрукты
C154: завтрак 2 | D154: напиток | E154: Сок фруктовый | F154: 200 | G154: 1 | H154: 0.2 | I154: 20.2 | J154: 86 | K154: пром
D156: итого | F156: =SUM(F150:F155) -> 700 | G156: =SUM(G150:G155) -> 21.9 | H156: =SUM(H150:H155) -> 22.6 | I156: =SUM(I150:I155) -> 90.13 | J156: =SUM(J150:J155) -> 656
A157: =A150 -> 2 | B157: =B150 -> 2 | C157: Обед | D157: закуска | E157: Салат Мазайка | F157: 60 | G157: 0.9 | H157: 4.5 | I157: 5.5 | J157: 68 | K157: 36
D158: 1 блюдо | E158: Суп картофельный с крупой | F158: 250 | G158: 2.6 | H158: 2.1 | I158: 19.3 | J158: 113 | K158: 63
D159: 2 блюдо | E159: Гуляш из отварной говядины | F159: 100 | G159: 13.4 | H159: 13.4 | I159: 3.1 | J159: 188 | K159: 97
D160: гарнир | E160: Макаронные изделия отварные | F160: 185 | G160: 6.5 | H160: 4.4 | I160: 40 | J160: 233 | K160: 227
D161: напиток | E161: Чай с сахаром | F161: 200 | G161: 0.2 | H161: 0 | I161: 9.1 | J161: 36 | K161: 300
D162: хлеб бел. | E162: Хлеб пшеничный с витаминами и железом | F162: 40 | G162: 3.6 | H162: 0.4 | I162: 19.3 | J162: 98.4 | K162: пром.
D163: хлеб черн. | E163: Хлеб ржано - пшеничный с витаминами и железом | F163: 50 | G163: 3.3 | H163: 0.6 | I163: 16.7 | J163: 96.5 | K163: пром.
D166: итого | F166: =SUM(F157:F165) -> 885 | G166: =SUM(G157:G165) -> 30.5 | H166: =SUM(H157:H165) -> 25.4 | I166: =SUM(I157:I165) -> 113 | J166: =SUM(J157:J165) -> 832.9
A167: =A150 -> 2 | B167: =B150 -> 2 | C167: Итого за день: | F167: =F166+F156 -> 1585 | G167: =G166+G156 -> 52.4 | H167: 48 | I167: 203.13 | J167: 1488.9
A168: 2 | B168: 3 | C168: Завтрак | D168: гор.блюдо | E168: Суп молочный с крупой пшенной , сосиски отварные | F168: 300 | G168: 10.3 | H168: 15.5 | I168: 20.6 | J168: 263 | K168: 76
D169: гор.напиток | E169: Кофейный напиток на молоке сгущенном | F169: 200 | G169: 1.4 | H169: 1.4 | I169: 12.5 | J169: 66 | K169: 305
D170: хлеб | E170: Бутерброд с маслом , хлеб пшеничный с витаминами и железом | F170: 60 | G170: 4 | H170: 8.8 | I170: 24.2 | J170: 197.8 | K170: 1
D171: фрукты
D172: булочное
C173: завтрак 2 | D173: напиток | E173: Сок фруктовый | F173: 200 | G173: 1 | H173: 0.2 | I173: 20.2 | J173: 86 | K173: пром
D174: итого | F174: =SUM(F168:F173) -> 760 | G174: =SUM(G168:G173) -> 16.7 | H174: =SUM(H168:H173) -> 25.9 | I174: =SUM(I168:I173) -> 77.5 | J174: =SUM(J168:J173) -> 612.8
A175: =A168 -> 2 | B175: 3 | C175: Обед | D175: закуска | E175: Салат из свежих помидоров и огурцов | F175: 60 | G175: 0.5 | H175: 2.8 | I175: 2.2 | J175: 38 | K175: 15
D176: 1 блюдо | E176: Рассольник домашний | F176: 250 | G176: 2.5 | H176: 6.2 | I176: 14.6 | J176: 130 | K176: 59
D177: 2 блюдо | E177: Печень по - строгановски | F177: 90 | G177: 12.4 | H177: 8.9 | I177: 2.3 | J177: 140 | K177: 130
D178: гарнир | E178: Каша молочная Дружба | F178: 185 | G178: 5.7 | H178: 7.8 | I178: 30.1 | J178: 216 | K178: 210
D179: напиток | E179: Компот из свежих плодов | F179: 200 | G179: 0.2 | H179: 0.1 | I179: 17.2 | J179: 70 | K179: 311
D180: хлеб бел. | E180: Хлеб пшеничный с витаминами и железом | F180: 50 | G180: 4 | H180: 0.5 | I180: 24.2 | J180: 123 | K180: пром.
D181: хлеб черн. | E181: Хлеб ржано - пшеничный с витаминами и железом | F181: 50 | G181: 3.3 | H181: 0.6 | I181: 16.7 | J181: 96.5 | K181: пром.
D184: итого | F184: =SUM(F175:F183) -> 885 | G184: =SUM(G175:G183) -> 28.6 | H184: =SUM(H175:H183) -> 26.9 | I184: =SUM(I175:I183) -> 107.3 | J184: =SUM(J175:J183) -> 813.5
A185: =A168 -> 2 | B185: 3 | C185: Итого за день: | F185: =F184+F174 -> 1645 | G185: =G184+G174 -> 45.3 | H185: 52.8 | I185: 184.8 | J185: 1426.3
A186: 2 | B186: 4 | C186: Завтрак | D186: гор.блюдо | E186: Каша овсяная молочная , яйца вареные | F186: 225 | G186: 10.7 | H186: 12.8 | I186: 23.9 | J186: 278 | K186: 206
D187: гор.напиток | E187: Какао с молоком | F187: 200 | G187: 3.3 | H187: 3.1 | I187: 13.63 | J187: 95 | K187: 306
D188: хлеб | E188: Бутерброд с маслом и сыром, хлеб пшеничный с витаминами и железом | F188: 75 | G188: 7.1 | H188: 7.4 | I188: 29 | J188: 220 | K188: 2
D189: фрукты
C190: завтрак 2 | D190: напиток | E190: Сок фруктовый | F190: 200 | G190: 1 | H190: 0.2 | I190: 20.2 | J190: 86 | K190: пром
D192: итого | F192: =SUM(F186:F191) -> 700 | G192: =SUM(G186:G191) -> 22.1 | H192: =SUM(H186:H191) -> 23.5 | I192: =SUM(I186:I191) -> 86.73 | J192: =SUM(J186:J191) -> 679
A193: =A186 -> 2 | B193: =B186 -> 4 | C193: Обед | D193: закуска | E193: Салат из свежих огурцов | F193: 60 | G193: 0.5 | H193: 2.7 | I193: 1.8 | J193: 35 | K193: 14
D194: 1 блюдо | E194: Суп картофельный с лапшой домашней | F194: 250 | G194: 2.8 | H194: 2.3 | I194: 17.3 | J194: 109 | K194: 62
D195: 2 блюдо | E195: Бефстроганов из отварного мяса | F195: 100 | G195: 20.8 | H195: 16.3 | I195: 2.5 | J195: 224 | K195: 94
D196: гарнир | E196: Рагу из овощей | F196: 185 | G196: 3.8 | H196: 13.2 | I196: 20.5 | J196: 224 | K196: 158
D197: напиток | E197: Компот из свежих плодов | F197: 200 | G197: 0.2 | H197: 0.1 | I197: 17.2 | J197: 70 | K197: 311
D198: хлеб бел. | E198: Хлеб пшеничный с витаминами и железом | F198: 40 | G198: 3.6 | H198: 0.4 | I198: 19.3 | J198: 98.4 | K198: пром.
D199: хлеб черн. | E199: Хлеб ржано - пшеничный с витаминами и железом | F199: 50 | G199: 3.3 | H199: 0.6 | I199: 16.7 | J199: 96.5 | K199: пром.
D202: итого | F202: =SUM(F193:F201) -> 885 | G202: =SUM(G193:G201) -> 35 | H202: =SUM(H193:H201) -> 35.6 | I202: =SUM(I193:I201) -> 95.3 | J202: =SUM(J193:J201) -> 856.9
A203: =A186 -> 2 | B203: =B186 -> 4 | C203: Итого за день: | F203: =F192+F202 -> 1585 | G203: =G192+G202 -> 57.1 | H203: 59.1 | I203: 182.03 | J203: 1535.9
A204: 2 | B204: 5 | C204: Завтрак | D204: гор.блюдо | E204: Суп молочный с овощами, сосиски отварные | F204: 300 | G204: 9.9 | H204: 15.8 | I204: 13.7 | J204: 239 | K204: 77
D205: гор.напиток | E205: Кофейный напиток на молоке сгущенном | F205: 200 | G205: 1.4 | H205: 1.4 | I205: 12.5 | J205: 66 | K205: 305
D206: хлеб | E206: Бутерброд с маслом и сыром, хлеб пшеничный с витаминами и железом | F206: 65 | G206: 7.1 | H206: 7.4 | I206: 29 | J206: 220 | K206: 2
D207: фрукты
C208: завтрак 2 | D208: напиток | E208: Сок фруктовый | F208: 200 | G208: 1 | H208: 0.2 | I208: 20.2 | J208: 86 | K208: пром
D210: итого | F210: =SUM(F204:F209) -> 765 | G210: =SUM(G204:G209) -> 19.4 | H210: =SUM(H204:H209) -> 24.8 | I210: =SUM(I204:I209) -> 75.4 | J210: =SUM(J204:J209) -> 611
A211: =A204 -> 2 | B211: =B204 -> 5 | C211: Обед | D211: закуска | E211: Салат из свежих помидоров | F211: 60 | G211: 0.6 | H211: 3 | I211: 2.9 | J211: 43 | K211: 13
D212: 1 блюдо | E212: Борщ с капустой и картофелем | F212: 250 | G212: 2 | H212: 5.4 | I212: 12.8 | J212: 111 | K212: 58
D213: 2 блюдо | E213: Плов из отварной говядины | F213: 200 | G213: 14.8 | H213: 16 | I213: 40.1 | J213: 372 | K213: 120
D214: гарнир
D215: напиток | E215: Чай с сахаром | F215: 200 | G215: 0.2 | H215: 0 | I215: 9.1 | J215: 36 | K215: 300
D216: хлеб бел. | E216: Хлеб пшеничный с витаминами и железом | F216: 50 | G216: 4 | H216: 0.5 | I216: 24.2 | J216: 123 | K216: пром.
D217: хлеб черн. | E217: Хлеб ржано - пшеничный с витаминами и железом | F217: 50 | G217: 3.3 | H217: 0.6 | I217: 16.7 | J217: 96.5 | K217: пром.
D220: итого | F220: =SUM(F211:F219) -> 810 | G220: =SUM(G211:G219) -> 24.9 | H220: =SUM(H211:H219) -> 25.5 | I220: =SUM(I211:I219) -> 105.8 | J220: =SUM(J211:J219) -> 781.5
A221: =A204 -> 2 | B221: =B204 -> 5 | C221: Итого за день: | F221: =F220+F210 -> 1575 | G221: =G220+G210 -> 44.3 | H221: 50.3 | I221: 181.2 | J221: 1392.5
A222: 2 | B222: 6 | C222: Завтрак | D222: гор.блюдо | E222: Каша ячневая молочная , яйца вареные | F222: 225 | G222: 9.8 | H222: 11.5 | I222: 23.5 | J222: 247 | K222: 194
D223: гор.напиток | E223: Какао с молоком | F223: 200 | G223: 3.3 | H223: 3.1 | I223: 13.63 | J223: 95 | K223: 306
D224: хлеб | E224: Бутерброд с маслом и сыром, хлеб пшеничный с витаминами и железом | F224: 75 | G224: 7.1 | H224: 7.4 | I224: 29 | J224: 220 | K224: 2
D225: фрукты
C226: завтрак 2 | D226: напиток | E226: Сок фруктовый | F226: 200 | G226: 1 | H226: 0.2 | I226: 20.2 | J226: 86 | K226: пром
D228: итого | F228: =SUM(F222:F227) -> 700 | G228: =SUM(G222:G227) -> 21.2 | H228: =SUM(H222:H227) -> 22.2 | I228: =SUM(I222:I227) -> 86.33 | J228: =SUM(J222:J227) -> 648
A229: =A222 -> 2 | B229: =B222 -> 6 | C229: Обед | D229: закуска | E229: Салат из сырых овощей | F229: 60 | G229: 0.5 | H229: 2.7 | I229: 2.4 | J229: 37 | K229: 22
D230: 1 блюдо | E230: Уха с крупой | F230: 230 | G230: 10.2 | H230: 2.8 | I230: 12.1 | J230: 118 | K230: 73
D231: 2 блюдо | E231: Жаркое по - домашнему | F231: 180 | G231: 18.2 | H231: 18.2 | I231: 17.6 | J231: 312 | K231: 98
D232: гарнир
... 21 more rows
